Workbook

Sheet Inicio
B2: PLANILLA DE INGRESOS Y COSTOS PREDIALES
D6: Nombre Agricultor: | F6: ESTA ES UNA MUESTRA SOLICITE SU PROPIO LIBRO DE REGISTRO
E7: En esta hoja puede registrar sus ingresos o costos. Selecciona el tipo (Ingreso o Costo), la categoría (como “Venta de Leche” o “Sanidad”, entre otros) e ingresa los datos correspondientes. Al presionar “Grabar Registro”, los valores se guardan automáticamente en la hoja “Registro” y se actualizan los gráficos. También puedes borrar un registro existente usando el botón “Borrar Registro” identificando el registro con su N° de registro en la columna A.
E12: Aquí se almacenan todos los registros históricos de sus ingresos y costos. Cada fila corresponde a un registro grabado, con fecha, tipo, categoría y montos totales. Esta hoja alimenta automáticamente los gráficos y reportes, por lo que no se debe editar manualmente.
E17: En esta hoja puede visualizar los resultados de su gestión mediante gráficos dinámicos. Usa los filtros o segmentaciones a la izquierda de la hoja para ver sus ingresos o costos por tipo, categoría, fecha o producto. El sistema actualiza automáticamente los datos cada vez que grabe un nuevo registro.
E22: Aquí podrá generar un resumen de su actividad enfocado en Venta de Leche y Venta de Carne, se guardara en formato PDF en la misma carpeta en donde se encuentra este libro de Excel. Se agrupan los datos en grandes bloques (Ingresos y Costos) y dentro de ellos por categoría. Ideal para ver resultados durante el periodo de tiempo que selecciones, ya sea un seguimiento mensual, trimestral o anual de tus ingresos y costos. Considere ingresar la fecha con el formato dd-mm-aaaa. Los datos de porcentaje y total de hectáreas deben estar ingresados más abajo en la celda H29 y H30.
E28: Porcentaje del Predio dedicado al rubro de Leche | H28: 0.75
E29: Ingresar Total Há Uso Agropecuario | H29: 75

Sheet Ingreso
A2: Fecha | B2: 12 | C2: Febrero | D2: 2026
A4: Tipo | B4: Ingreso
A6: Categoría | B6: Venta de Leche
F7: Monto Total | G7: 0
A8: Incluye IVA

Sheet Registro
A1: N° | B1: Fecha | C1: Día | D1: Mes | E1: Año | F1: Tipo | G1: Categoría | H1: Total Neto | I1: Total IVA | J1: Monto Total | K1: Utilidad | L1: Litros Vendidos | M1: Precio x Litro | N1: Total Venta Leche | O1: Venta de Animales (total cabezas) | P1: N° Vacas | Q1: Kilos Vacas | R1: Total Ingreso Vacas | S1: N° Terneros | T1: Kilos Terneros | U1: Total Ingreso Terneros | V1: N° Terneras | W1: Kilos Terneras | X1: Total Ingreso Terneras | Y1: N° Novillos | Z1: Kilos Novillos | AA1: Total Ingreso Novillos | AB1: N° Vaquillas | AC1: Kilos Vaquillas | AD1: Total Ingreso Vaquillas | AE1: N° Toros | AF1: Kilos Toros | AG1: Total Ingreso Toros | AH1: N° Bueyes | AI1: Kilos Bueyes | AJ1: Total Ingreso Bueyes | AK1: N° Otros | AL1: Kilos Otros | AM1: Total Ingreso Otros | AN1: TOTAL KILOS VENTA ANIMALES | AO1: N° de Fardos | AP1: Precio Unit. Fardos | AQ1: Total Ingreso Venta Fardos | AR1: N° de Bolos | AS1: Precio Unit. Bolos | AT1: Total Ingreso Venta Bolos | AU1: Total Kilos Avena | AV1: Precio KG Avena | AW1: Total Ingreso Avena | AX1: Total Kilos Trigo | AY1: Precio KG Trigo | AZ1: Total Ingreso Trigo | BA1: Total Kilos Papas | BB1: Precio KG Papas | BC1: Total Ingreso Papas | BD1: Total ha Fumigación | BE1: Precio x ha Fumigación | BF1: Total Ingreso Fumigación | BG1: Total ha Prep. De Suelo | BH1: Precio x ha Prep. De Suelo | BI1: Total Ingreso Pre. De Suelo | BJ1: Total ha Siembra | BK1: Precio x ha Siembra | BL1: Total Ingreso Siembra | BM1: Total ha Fertilización | BN1: Precio x ha Fertilización | BO1: Total Ingreso Fertilización | BP1: Total ha Cosecha | BQ1: Precio x ha Cosecha | BR1: Total Ingreso Cosecha | BS1: Total Unid. Elab. Fardos | BT1: Precio Unit. Fardo Elaborado | BU1: Total Ingreso Elab. Fardos | BV1: Total Unid. Elab. Bolos | BW1: Precio Unit. Bolo Elaborado | BX1: Total Ingreso Elab. Bolos | BY1: Total Ingreso Flete | BZ1: Total Ingreso Otros2 | CA1: Descripción de Máquina o Equipos | CB1: Total Compra de Máquinas o Equipos | CC1: Descripción de Construcción | CD1: Total Construcción | CE1: Descripción de Otros Ingresos | CF1: Total Otros Ingresos | CG1: Fertilizantes (total kg) | CH1: Precio KG Fertilizantes | CI1: Total Costo Fertilizantes | CJ1: Semillas (total kg) | CK1: Precio KG Semillas | CL1: Total Costo Semillas | CM1: Servicio Maquinaria | CN1: Precio Unidad Maquinaria | CO1: Total Costo Servicio Maq. | CP1: Bolos Silo (cantidad) | CQ1: Precio Unitario Bolos Silo | CR1: Total Costo Bolos Silo | CS1: Fardos (cantidad) | CT1: Precio Unit. Fardos3 | CU1: Total Costo Fardos | CV1: Bolos o Fardos Paja (cantidad) | CW1: Precio Unit. Bolos o Fardos Paja | CX1: Total Costo Bolos o Fardos Paja | CY1: Concentrado | CZ1: Precio KG Concentrado | DA1: Total Costo Concentrado | DB1: Granos (Maíz, Avena, etc.) | DC1: Precio KG Granos | DD1: Total Costo Granos | DE1: Sales Minerales | DF1: Precio KG Sales Minerales | DG1: Total Costo Sales Minerales | DH1: Sustituto Lácteo (total kg) | DI1: Precio KG Sustituto Lácteo | DJ1: Total Costo Sustituto Lácteo | DK1: Otros Costos Alimentación Animal | DL1: Precio KG Otros Costos | DM1: Total Costo Otros | DN1: Detergente (unidades) | DO1: Precio Unit. Detergente | DP1: Total Costo Detergente | DQ1: Cloro (unidades) | DR1: Precio Unit. Cloro | DS1: Total Costo Cloro | DT1: Ácido (unidades) | DU1: Precio Unit. Ácido | DV1: Total Costo Ácido | DW1: Gas (unidades) | DX1: Precio Unit. Gas | DY1: Total Costo Gas | DZ1: Pezoneras (unidades) | EA1: Precio Unit. Pezoneras | EB1: Total Costo Pezoneras | EC1: Leña (m3) | ED1: Precio M3 Leña | EE1: Total Costo Leña | EF1: Servicio Técnico | EG1: Total Costo Servicio Técnico | EH1: Electricidad | EI1: Total Costo Electricidad | EJ1: Repuestos | EK1: Total Costo Repuestos | EL1: Otros | EM1: Total Costo Otros4 | EN1: Antibióticos | EO1: Precio Unit. Antibióticos | EP1: Total Costo Antibióticos | EQ1: Antiparasitarios Inyectables | ER1: Precio Unit. Antiparasitario Inyectable | ES1: Total Costo Antiparasitarios Inyectables | ET1: Antiparasitarios Externos (mosca) | EU1: Precio Unit. Antiparasitario Externo | EV1: Total Costo Antiparasitarios Externos (mosca) | EW1: Vacunas Clostridiales (1/adult, 2/Tern) | EX1: Precio Unit. Vacunas Clostridiales | EY1: Total Costo Vacunas Clostridiales (1/adult, 2/Tern) | EZ1: Vitamina ADE | FA1: Precio Unit. Vitamina ADE | FB1: Total Costo Vitamina ADE | FC1: Vitamina E + Selenio (Vacas y Vaquillas) | FD1: Precio Unit. Vitamina E + Selenio | FE1: Total Costo Vitamina E + Selenio (Vacas y Vaquillas) | FF1: Antiparasitario Oral (Terneros) | FG1: Precio Unit. Antiparasitario Oral | FH1: Total Costo Antiparasitario Oral (Terneros) | FI1: Aretes DIIO | FJ1: Precio Unit. Aretes DIIO | FK1: Total Costo Aretes DIIO | FL1: Ins. Artificial y Sinc. Celos | FM1: Precio Unit. Ins. Artificial y Sinc. Celos | FN1: Total Costo Ins. Artificial y Sinc. Celos | FO1: Chequeo BB | FP1: Precio Unit. BB | FQ1: Total Costo Chequeo BB | FR1: Vacunación BB | FS1: Precio Unit. Vacunación BB | FT1: Total Costo Vacunación BB | FU1: Chequeo LCB | FV1: Precio Unit. Chequeo LCB | FW1: Total Costo Chequeo LCB | FX1: Chequeo TBB | FY1: Precio Unit. Chequeo TBB | FZ1: Total Costo Chequeo TBB | GA1: Certificado SAG | GB1: Total Costo Certificado SAG | GC1: Urgencias Veterinarias + Medicamentos | GD1: Total Costo Urgencias Veterinarias + Medicamentos | GE1: Otros Insumos | GF1: Total Costo Otros Insumos | GG1: Total Costo Agua | GH1: Total Costo Contribuciones | GI1: Total Costo Contabilidad | GJ1: Total Costo Seguro Ganadero | GK1: Total Costo Combustible Movilización Administrador | GL1: Total Costo Fletes Animales e Insumos | GM1: Total Costo Asesoría Técnica | GN1: Total Costo Impuesto a la Renta | GO1: Total Costo Servicios externos | GP1: Total Costo Mantenciones/Reparaciones | GQ1: Total Costo Otros Costos | GR1: Columna5
A2: 4 | B2: 2026-05-12 | C2: 12 | D2: Mayo | E2: 2026 | F2: Ingreso | G2: Venta de Leche | H2: 1000 | I2: 190 | J2: 1190 | K2: =_xlfn.IFS(Tabla1[[#This Row],[Tipo]]="Ingreso",Tabla1[[#This Row],[Monto Total]]*1,Tabla1[[#This Row],[Tipo]]="Costo",Tabla1[[#This Row],[Monto Total]]*1) -> 1190 | L2: 10 | M2: 100 | N2: 1190 | AN2: =+Tabla1[[#This Row],[Kilos Otros]]+Tabla1[[#This Row],[Kilos Bueyes]]+Tabla1[[#This Row],[Kilos Toros]]+Tabla1[[#This Row],[Kilos Vaquillas]]+Tabla1[[#This Row],[Kilos Novillos]]+Tabla1[[#This Row],[Kilos Terneras]]+Tabla1[[#This Row],[Kilos Terneros]]+Tabla1[[#This Row],[Kilos Vacas]] -> 0
A3: 5 | B3: 2026-05-12 | C3: 12 | D3: Mayo | E3: 2026 | F3: Ingreso | G3: Venta de Fardos o Bolos | H3: 378151.2605 | I3: 71848.7395 | J3: 450000 | K3: =_xlfn.IFS(Tabla1[[#This Row],[Tipo]]="Ingreso",Tabla1[[#This Row],[Monto Total]]*1,Tabla1[[#This Row],[Tipo]]="Costo",Tabla1[[#This Row],[Monto Total]]*1) -> 450000 | AN3: =+Tabla1[[#This Row],[Kilos Otros]]+Tabla1[[#This Row],[Kilos Bueyes]]+Tabla1[[#This Row],[Kilos Toros]]+Tabla1[[#This Row],[Kilos Vaquillas]]+Tabla1[[#This Row],[Kilos Novillos]]+Tabla1[[#This Row],[Kilos Terneras]]+Tabla1[[#This Row],[Kilos Terneros]]+Tabla1[[#This Row],[Kilos Vacas]] -> 0 | AO3: 10 | AP3: 45000 | AQ3: 450000 | AR3: 0 | AS3: 0 | AT3: 0
A4: 6 | B4: 2026-05-12 | C4: 12 | D4: Mayo | E4: 2026 | F4: Ingreso | G4: Venta de Fardos o Bolos | H4: 450000 | I4: 85500 | J4: 535500 | K4: =_xlfn.IFS(Tabla1[[#This Row],[Tipo]]="Ingreso",Tabla1[[#This Row],[Monto Total]]*1,Tabla1[[#This Row],[Tipo]]="Costo",Tabla1[[#This Row],[Monto Total]]*1) -> 535500 | AN4: =+Tabla1[[#This Row],[Kilos Otros]]+Tabla1[[#This Row],[Kilos Bueyes]]+Tabla1[[#This Row],[Kilos Toros]]+Tabla1[[#This Row],[Kilos Vaquillas]]+Tabla1[[#This Row],[Kilos Novillos]]+Tabla1[[#This Row],[Kilos Terneras]]+Tabla1[[#This Row],[Kilos Terneros]]+Tabla1[[#This Row],[Kilos Vacas]] -> 0 | AO4: 10 | AP4: 45000 | AQ4: 535500 | AR4: 0 | AS4: 0 | AT4: 0
A5: 7 | B5: 2026-03-12 | C5: 12 | D5: Marzo | E5: 2026 | F5: Costo | G5: Insumos Sala de Ordeña | H5: 1250 | I5: 237.5 | J5: 1487.5 | K5: =_xlfn.IFS(Tabla1[[#This Row],[Tipo]]="Ingreso",Tabla1[[#This Row],[Monto Total]]*1,Tabla1[[#This Row],[Tipo]]="Costo",Tabla1[[#This Row],[Monto Total]]*1) -> 1487.5 | AN5: =+Tabla1[[#This Row],[Kilos Otros]]+Tabla1[[#This Row],[Kilos Bueyes]]+Tabla1[[#This Row],[Kilos Toros]]+Tabla1[[#This Row],[Kilos Vaquillas]]+Tabla1[[#This Row],[Kilos Novillos]]+Tabla1[[#This Row],[Kilos Terneras]]+Tabla1[[#This Row],[Kilos Terneros]]+Tabla1[[#This Row],[Kilos Vacas]] -> 0 | DM5: 0 | DN5: 10 | DO5: 125 | DP5: 1488 | DQ5: 0 | DR5: 0 | DS5: 0 | DT5: 0 | DU5: 0 | DV5: 0 | DW5: 0 | DX5: 0 | DY5: 0 | DZ5: 0 | EA5: 0 | EB5: 0 | EC5: 0 | ED5: 0 | EE5: 0 | EG5: 0 | EI5: 0 | EK5: 0
A6: 8 | B6: 2026-01-12 | C6: 12 | D6: Enero | E6: 2026 | F6: Ingreso | G6: Venta de Animales | H6: 1000000 | I6: 190000 | J6: 1190000 | K6: =_xlfn.IFS(Tabla1[[#This Row],[Tipo]]="Ingreso",Tabla1[[#This Row],[Monto Total]]*1,Tabla1[[#This Row],[Tipo]]="Costo",Tabla1[[#This Row],[Monto Total]]*1) -> 1190000 | P6: 0 | Q6: 0 | R6: 0 | S6: 10 | T6: 800 | U6: 1190000 | V6: 0 | W6: 0 | X6: 0 | Y6: 0 | Z6: 0 | AA6: 0 | AB6: 0 | AC6: 0 | AD6: 0 | AE6: 0 | AF6: 0 | AG6: 0 | AH6: 0 | AI6: 0 | AJ6: 0 | AK6: 0 | AL6: 0 | AM6: 0 | AN6: =+Tabla1[[#This Row],[Kilos Otros]]+Tabla1[[#This Row],[Kilos Bueyes]]+Tabla1[[#This Row],[Kilos Toros]]+Tabla1[[#This Row],[Kilos Vaquillas]]+Tabla1[[#This Row],[Kilos Novillos]]+Tabla1[[#This Row],[Kilos Terneras]]+Tabla1[[#This Row],[Kilos Terneros]]+Tabla1[[#This Row],[Kilos Vacas]] -> 800
A7: 9 | B7: 2026-11-12 | C7: 12 | D7: Noviembre | E7: 2026 | F7: Costo | G7: Alimentación Animal | H7: 180000 | I7: 34200 | J7: 214200 | K7: =_xlfn.IFS(Tabla1[[#This Row],[Tipo]]="Ingreso",Tabla1[[#This Row],[Monto Total]]*1,Tabla1[[#This Row],[Tipo]]="Costo",Tabla1[[#This Row],[Monto Total]]*1) -> 214200 | AN7: =+Tabla1[[#This Row],[Kilos Otros]]+Tabla1[[#This Row],[Kilos Bueyes]]+Tabla1[[#This Row],[Kilos Toros]]+Tabla1[[#This Row],[Kilos Vaquillas]]+Tabla1[[#This Row],[Kilos Novillos]]+Tabla1[[#This Row],[Kilos Terneras]]+Tabla1[[#This Row],[Kilos Terneros]]+Tabla1[[#This Row],[Kilos Vacas]] -> 0 | CG7: 150 | CH7: 1200 | CI7: 214200
A8: 10 | B8: 2026-12-12 | C8: 12 | D8: Diciembre | E8: 2026 | F8: Costo | G8: Otros Costos | H8: 200000 | I8: 38000 | J8: 238000 | K8: =_xlfn.IFS(Tabla1[[#This Row],[Tipo]]="Ingreso",Tabla1[[#This Row],[Monto Total]]*1,Tabla1[[#This Row],[Tipo]]="Costo",Tabla1[[#This Row],[Monto Total]]*1) -> 238000 | AN8: =+Tabla1[[#This Row],[Kilos Otros]]+Tabla1[[#This Row],[Kilos Bueyes]]+Tabla1[[#This Row],[Kilos Toros]]+Tabla1[[#This Row],[Kilos Vaquillas]]+Tabla1[[#This Row],[Kilos Novillos]]+Tabla1[[#This Row],[Kilos Terneras]]+Tabla1[[#This Row],[Kilos Terneros]]+Tabla1[[#This Row],[Kilos Vacas]] -> 0 | GG8: 0 | GH8: 0 | GI8: 0 | GJ8: 0 | GK8: 0 | GL8: 0 | GM8: 238000 | GN8: 0 | GO8: 0 | GP8: 0 | GQ8: 0
A9: 11 | B9: 2026-02-12 | C9: 12 | D9: Febrero | E9: 2026 | F9: Ingreso | G9: Venta de Fardos o Bolos | H9: 226890.7563 | I9: 43109.2437 | J9: 270000 | K9: =_xlfn.IFS(Tabla1[[#This Row],[Tipo]]="Ingreso",Tabla1[[#This Row],[Monto Total]]*1,Tabla1[[#This Row],[Tipo]]="Costo",Tabla1[[#This Row],[Monto Total]]*1) -> 270000 | AN9: =+Tabla1[[#This Row],[Kilos Otros]]+Tabla1[[#This Row],[Kilos Bueyes]]+Tabla1[[#This Row],[Kilos Toros]]+Tabla1[[#This Row],[Kilos Vaquillas]]+Tabla1[[#This Row],[Kilos Novillos]]+Tabla1[[#This Row],[Kilos Terneras]]+Tabla1[[#This Row],[Kilos Terneros]]+Tabla1[[#This Row],[Kilos Vacas]] -> 0 | AO9: 45 | AP9: 6000 | AQ9: 270000 | AR9: 0 | AS9: 0 | AT9: 0
A10: 12 | B10: 2026-03-12 | C10: 12 | D10: Marzo | E10: 2026 | F10: Costo | G10: Insumos Sala de Ordeña | H10: 456000 | I10: 86640 | J10: 542640 | K10: =_xlfn.IFS(Tabla1[[#This Row],[Tipo]]="Ingreso",Tabla1[[#This Row],[Monto Total]]*1,Tabla1[[#This Row],[Tipo]]="Costo",Tabla1[[#This Row],[Monto Total]]*1) -> 542640 | AN10: =+Tabla1[[#This Row],[Kilos Otros]]+Tabla1[[#This Row],[Kilos Bueyes]]+Tabla1[[#This Row],[Kilos Toros]]+Tabla1[[#This Row],[Kilos Vaquillas]]+Tabla1[[#This Row],[Kilos Novillos]]+Tabla1[[#This Row],[Kilos Terneras]]+Tabla1[[#This Row],[Kilos Terneros]]+Tabla1[[#This Row],[Kilos Vacas]] -> 0 | DM10: 0 | DN10: 0 | DO10: 0 | DP10: 0 | DQ10: 0 | DR10: 0 | DS10: 0 | DT10: 0 | DU10: 0 | DV10: 0 | DW10: 0 | DX10: 0 | DY10: 0 | DZ10: 0 | EA10: 0 | EB10: 0 | EC10: 12 | ED10: 38000 | EE10: 542640 | EG10: 0 | EI10: 0 | EK10: 0
A11: 13 | B11: 2026-04-12 | C11: 12 | D11: Abril | E11: 2026 | F11: Ingreso | G11: Venta de Granos y Otros | H11: 193277.3109 | I11: 36722.68908 | J11: 230000 | K11: =_xlfn.IFS(Tabla1[[#This Row],[Tipo]]="Ingreso",Tabla1[[#This Row],[Monto Total]]*1,Tabla1[[#This Row],[Tipo]]="Costo",Tabla1[[#This Row],[Monto Total]]*1) -> 230000 | AN11: =+Tabla1[[#This Row],[Kilos Otros]]+Tabla1[[#This Row],[Kilos Bueyes]]+Tabla1[[#This Row],[Kilos Toros]]+Tabla1[[#This Row],[Kilos Vaquillas]]+Tabla1[[#This Row],[Kilos Novillos]]+Tabla1[[#This Row],[Kilos Terneras]]+Tabla1[[#This Row],[Kilos Terneros]]+Tabla1[[#This Row],[Kilos Vacas]] -> 0 | AU11: 1000 | AV11: 230 | AW11: 230000 | AX11: 0 | AY11: 0 | AZ11: 0 | BA11: 0 | BB11: 0 | BC11: 0
A12: 14 | B12: 2026-05-12 | C12: 12 | D12: Mayo | E12: 2026 | F12: Ingreso | G12: Venta de Leche | H12: 225000 | I12: 42750 | J12: 267750 | K12: =_xlfn.IFS(Tabla1[[#This Row],[Tipo]]="Ingreso",Tabla1[[#This Row],[Monto Total]]*1,Tabla1[[#This Row],[Tipo]]="Costo",Tabla1[[#This Row],[Monto Total]]*1) -> 267750 | L12: 500 | M12: 450 | N12: 267750 | AN12: =+Tabla1[[#This Row],[Kilos Otros]]+Tabla1[[#This Row],[Kilos Bueyes]]+Tabla1[[#This Row],[Kilos Toros]]+Tabla1[[#This Row],[Kilos Vaquillas]]+Tabla1[[#This Row],[Kilos Novillos]]+Tabla1[[#This Row],[Kilos Terneras]]+Tabla1[[#This Row],[Kilos Terneros]]+Tabla1[[#This Row],[Kilos Vacas]] -> 0
A13: 15 | B13: 2026-06-12 | C13: 12 | D13: Junio | E13: 2026 | F13: Costo | G13: Sanidad | H13: 50420.16807 | I13: 9579.831933 | J13: 60000 | K13: =_xlfn.IFS(Tabla1[[#This Row],[Tipo]]="Ingreso",Tabla1[[#This Row],[Monto Total]]*1,Tabla1[[#This Row],[Tipo]]="Costo",Tabla1[[#This Row],[Monto Total]]*1) -> 60000 | AN13: =+Tabla1[[#This Row],[Kilos Otros]]+Tabla1[[#This Row],[Kilos Bueyes]]+Tabla1[[#This Row],[Kilos Toros]]+Tabla1[[#This Row],[Kilos Vaquillas]]+Tabla1[[#This Row],[Kilos Novillos]]+Tabla1[[#This Row],[Kilos Terneras]]+Tabla1[[#This Row],[Kilos Terneros]]+Tabla1[[#This Row],[Kilos Vacas]] -> 0 | EP13: 0 | ES13: 0 | EV13: 0 | EY13: 0 | FB13: 0 | FE13: 0 | FH13: 0 | FK13: 0 | FN13: 0 | FQ13: 0 | FR13: 30 | FS13: $2,000.00 | FT13: 60000 | FW13: 0 | FZ13: 0 | GB13: 0 | GD13: 0 | GF13: 0
A14: 16 | B14: 2026-07-12 | C14: 12 | D14: Julio | E14: 2026 | F14: Ingreso | G14: Venta de Animales | H14: 1008403.361 | I14: 191596.6387 | J14: 1200000 | K14: =_xlfn.IFS(Tabla1[[#This Row],[Tipo]]="Ingreso",Tabla1[[#This Row],[Monto Total]]*1,Tabla1[[#This Row],[Tipo]]="Costo",Tabla1[[#This Row],[Monto Total]]*1) -> 1200000 | P14: 4 | Q14: 1200 | R14: 1200000 | S14: 0 | T14: 0 | U14: 0 | V14: 0 | W14: 0 | X14: 0 | Y14: 0 | Z14: 0 | AA14: 0 | AB14: 0 | AC14: 0 | AD14: 0 | AE14: 0 | AF14: 0 | AG14: 0 | AH14: 0 | AI14: 0 | AJ14: 0 | AK14: 0 | AL14: 0 | AM14: 0 | AN14: =+Tabla1[[#This Row],[Kilos Otros]]+Tabla1[[#This Row],[Kilos Bueyes]]+Tabla1[[#This Row],[Kilos Toros]]+Tabla1[[#This Row],[Kilos Vaquillas]]+Tabla1[[#This Row],[Kilos Novillos]]+Tabla1[[#This Row],[Kilos Terneras]]+Tabla1[[#This Row],[Kilos Terneros]]+Tabla1[[#This Row],[Kilos Vacas]] -> 1200
A15: 17 | B15: 2026-10-12 | C15: 12 | D15: Octubre | E15: 2026 | F15: Ingreso | G15: Venta de Leche | H15: 1890756.303 | I15: 359243.6975 | J15: 2250000 | K15: =_xlfn.IFS(Tabla1[[#This Row],[Tipo]]="Ingreso",Tabla1[[#This Row],[Monto Total]]*1,Tabla1[[#This Row],[Tipo]]="Costo",Tabla1[[#This Row],[Monto Total]]*1) -> 2250000 | L15: 5000 | M15: 450 | N15: 2250000 | AN15: =+Tabla1[[#This Row],[Kilos Otros]]+Tabla1[[#This Row],[Kilos Bueyes]]+Tabla1[[#This Row],[Kilos Toros]]+Tabla1[[#This Row],[Kilos Vaquillas]]+Tabla1[[#This Row],[Kilos Novillos]]+Tabla1[[#This Row],[Kilos Terneras]]+Tabla1[[#This Row],[Kilos Terneros]]+Tabla1[[#This Row],[Kilos Vacas]] -> 0
A16: 18 | B16: 2026-02-12 | C16: 12 | D16: Febrero | E16: 2026 | F16: Costo | G16: Insumos Sala de Ordeña | H16: 765756.3025 | I16: 145493.6975 | J16: 911250 | K16: =_xlfn.IFS(Tabla1[[#This Row],[Tipo]]="Ingreso",Tabla1[[#This Row],[Monto Total]]*1,Tabla1[[#This Row],[Tipo]]="Costo",Tabla1[[#This Row],[Monto Total]]*1) -> 911250 | AN16: =+Tabla1[[#This Row],[Kilos Otros]]+Tabla1[[#This Row],[Kilos Bueyes]]+Tabla1[[#This Row],[Kilos Toros]]+Tabla1[[#This Row],[Kilos Vaquillas]]+Tabla1[[#This Row],[Kilos Novillos]]+Tabla1[[#This Row],[Kilos Terneras]]+Tabla1[[#This Row],[Kilos Terneros]]+Tabla1[[#This Row],[Kilos Vacas]] -> 0 | DM16: 0 | DN16: 50 | DO16: 3500 | DP16: 175000 | DQ16: 25 | DR16: 1850 | DS16: 46250 | DT16: 0 | DU16: 0 | DV16: 0 | DW16: 3 | DX16: 80000 | DY16: 240000 | DZ16: 0 | EA16: 0 | EB16: 0 | EC16: 10 | ED16: 45000 | EE16: 450000 | EG16: 0 | EI16: 0 | EK16: 0
O17: =+P17+S17+V17+Y17+AB17+AE17+AH17+AK17 -> 0
O18: 0
O19: 0
O20: 0
O21: 0
O22: 0
O23: 0
O24: 0
O25: 0
O26: 0
O27: 0
O28: 0
O29: 0
O30: 0
O31: 0
O32: 0
O33: 0
O34: 0
O35: 0
O36: 0
O37: 0
O38: 0
O39: 0
O40: =+P40+S40+V40+Y40+AB40+AE40+AH40+AK40 -> 0
O41: 0
O42: 0
O43: 0
O44: 0
O45: 0
O46: 0
O47: 0
O48: 0
O49: 0
O50: 0
O51: 0
O52: 0
O53: 0
O54: 0
O55: 0
O56: 0
O57: 0
O58: 0
O59: 0
O60: 0
O61: 0
O62: 0
O63: 0
O64: 0
O65: 0
O66: 0
O67: 0
O68: 0
O69: 0
O70: 0
O71: 0
O72: 0
O73: 0
O74: 0
O75: 0
O76: 0
O77: 0
O78: 0
O79: 0
O80: 0
O81: 0
O82: 0
O83: 0
O84: 0
O85: 0
O86: 0
O87: 0
O88: 0
O89: 0
O90: 0
O91: 0
O92: 0
O93: 0
O94: 0
O95: 0
O96: 0
O97: 0
O98: 0
O99: 0
O100: 0
O101: 0
O102: 0
O103: 0
O104: =+P104+S104+V104+Y104+AB104+AE104+AH104+AK104 -> 0
O105: 0
O106: 0
O107: 0
O108: 0
O109: 0
O110: 0
O111: 0
O112: 0
O113: 0
O114: 0
O115: 0
O116: 0
O117: 0
O118: 0
O119: 0
O120: 0
O121: 0
O122: 0
O123: 0
O124: 0
O125: 0
O126: 0
O127: 0
O128: 0
O129: 0
O130: 0
O131: 0
O132: 0
O133: 0
O134: 0
O135: 0
O136: 0
O137: 0
O138: 0
O139: 0
O140: 0
O141: 0
O142: 0
O143: 0
O144: 0
O145: 0
O146: 0
O147: 0
O148: 0
O149: 0
O150: 0
O151: 0
O152: 0
O153: 0
O154: 0
O155: 0
O156: 0
O157: 0
O158: 0
O159: 0
O160: 0
O161: 0
O162: 0
O163: 0
O164: 0
O165: 0
O166: 0
O167: 0
O168: =+P168+S168+V168+Y168+AB168+AE168+AH168+AK168 -> 0
O169: 0
O170: 0
O171: 0
O172: 0
O173: 0
O174: 0
O175: 0
O176: 0
O177: 0
O178: 0
O179: 0
O180: 0
O181: 0
O182: 0
O183: 0
O184: 0
O185: 0
O186: 0
O187: 0
O188: 0
O189: 0
O190: 0
O191: 0
O192: 0
O193: 0
O194: 0
O195: 0
O196: 0
O197: 0
O198: 0
O199: 0
O200: 0
... 6172 more rows

Sheet Gráficos

Sheet Listas (hidden)
A1: Formatos (no mover ni agregar columnas antes de la columna E) | E1: Tipo | F1: Ingreso | G1: Venta de leche | H1: Venta de animales | I1: Venta de Fardos o Bolos | J1: Venta de Granos y Otros | K1: Servicios | L1: Incentivos y Otros Ingresos | M1: Costo | N1: Alimentación Animal | O1: Insumos Sala de Ordeña | P1: Sanidad | Q1: Otros costos | R1: Incluye IVA | S1: Día | T1: Mes | U1: Año
E2: Ingreso | F2: Venta de Leche | G2: Litros Vendidos | H2: Vacas | I2: N° de Fardos | J2: Venta de Avena | K2: Fumigación (ha totales) | L2: Compra de Máquinas o Equipos | M2: Alimentación Animal | N2: Fertilizantes (total kg) | O2: Detergente (unidades) | P2: Antibióticos | Q2: Agua | R2: Sí | S2: 1 | T2: Enero | U2: 2024
A3: Fecha | E3: Costo | F3: Venta de Animales | H3: Terneros | I3: N° de Bolos | J3: Venta de Trigo | K3: Preparación de Suelo (ha totales) | L3: Construcción | M3: Insumos Sala de Ordeña | N3: Semillas (total kg) | O3: Cloro (unidades) | P3: Antiparasitarios Inyectables | Q3: Contribuciones | R3: No | S3: 2 | T3: Febrero | U3: 2025
F4: Venta de Fardos o Bolos | H4: Terneras | J4: Venta de Papas | K4: Siembra (ha totales) | L4: Otros | M4: Sanidad | N4: Servicio Maquinaria (descripción) | O4: Ácido (unidades) | P4: Antiparasitarios Externos (mosca) | Q4: Contabilidad | S4: 3 | T4: Marzo | U4: 2026
A5: Kilos | F5: Venta de Granos y Otros | H5: Novillos | J5: Otros | K5: Fertilización (ha totales) | M5: Otros Costos | N5: Bolos Silo (cantidad) | O5: Gas (unidades) | P5: Vacunas Clostridiales (1/adult, 2/Tern) | Q5: Seguro Ganadero | S5: 4 | T5: Abril | U5: 2027
F6: Servicios | H6: Vaquillas | K6: Cosecha (ha totales) | N6: Fardos (cantidad) | O6: Pezoneras (unidades) | P6: Vitamina ADE | Q6: Combustible Movilización Administrador | S6: 5 | T6: Mayo | U6: 2028
A7: Precio Unitario | F7: Incentivos y Otros Ingresos | H7: Toros | K7: Elaboración de Fardos (Unidades) | N7: Bolos o Fardos Paja (cantidad) | O7: Leña (m2) | P7: Vitamina E + Selenio (Vacas y Vaquillas) | Q7: Fletes Animales e Insumos | S7: 6 | T7: Junio | U7: 2029
H8: Bueyes | K8: Elaboración de Bolos (Unidades) | N8: Concentrado | O8: Servicio Técnico | P8: Antiparasitario Oral (Terneros) | Q8: Asesoría Técnica | S8: 7 | T8: Julio | U8: 2030
A9: Precio Litro | H9: Otros | K9: Flete | N9: Granos (Maíz, Avena, etc.) | O9: Electricidad | P9: Aretes DIIO | Q9: Impuesto a la Renta | S9: 8 | T9: Agosto
K10: Otros | N10: Sales Minerales | O10: Repuestos | P10: Ins. Artificial y Sinc. Celos | Q10: Servicios externos | S10: 9 | T10: Septiembre
A11: Precio Kilo | N11: Sustituto Lácteo (total kg) | O11: Otros | P11: Chequeo BB | Q11: Mantenciones/Reparaciones | S11: 10 | T11: Octubre
N12: Otros | P12: Vacunación BB | Q12: Otros Costos | S12: 11 | T12: Noviembre
A13: Precio x Hectárea | P13: Chequeo LCB | S13: 12 | T13: Diciembre
P14: Chequeo TBB | S14: 13
A15: Monto Total | P15: Certificado SAG | S15: 14
P16: Urgencias Veterinarias + Medicamentos | S16: 15
P17: Otros Insumos | S17: 16
S18: 17
A19: Total | S19: 18
S20: 19
S21: 20
S22: 21
A23: Cantidad | S23: 22
S24: 23
A25: Descripción | S25: 24
S26: 25
A27: Total de Kilos | S27: 26
S28: 27
S29: 28
S30: 29
S31: 30
S32: 31

Sheet Base Gráficos (hidden)
A2: Tipo | B2: (Todas)
A4: Etiquetas de fila | B4: Suma de Monto Total
A5: Enero | B5: 1190000
A6: Febrero | B6: 1181250
A7: Marzo | B7: 544127.5
A8: Abril | B8: 230000
A9: Mayo | B9: 1254440
A10: Junio | B10: 60000
A11: Julio | B11: 1200000
A12: Octubre | B12: 2250000
A13: Noviembre | B13: 214200
A14: Diciembre | B14: 238000
A15: Total general | B15: 8362017.5
A20: Etiquetas de fila | B20: Suma de Monto Total
A21: Sanidad | B21: 60000
A22: Alimentación Animal | B22: 214200
A23: Venta de Granos y Otros | B23: 230000
A24: Otros Costos | B24: 238000
A25: Venta de Fardos o Bolos | B25: 1255500
A26: Insumos Sala de Ordeña | B26: 1455377.5
A27: Venta de Animales | B27: 2390000
A28: Venta de Leche | B28: 2518940
A29: Total general | B29: 8362017.5
A37: Etiquetas de fila | B37: Suma de Monto Total
A38: Costo | B38: 1967577.5
A39: Ingreso | B39: 6394440
A40: Total general | B40: 8362017.5
A47: Tipo | B47: (Todas)
A48: Categoría | B48: (Todas)
A50: Valores
A51: Venta Leche | B51: 2518940
A52: Vacas | B52: 1200000
A53: Terneros | B53: 1190000
A54: Terneras | B54: 0
A55: Novillos | B55: 0
A56: Vaquillas | B56: 0
A57: Toros | B57: 0
A58: Bueyes | B58: 0
A59: Otros Animales | B59: 0
A60: Fardos | B60: 1255500
A61: Bolos | B61: 0
A62: Avena | B62: 230000
A63: Trigo | B63: 0
A64: Papas | B64: 0
A65: Fumigación | B65: 0
A66: Prep. de Suelo | B66: 0
A67: Siembra | B67: 0
A68: Fertilización | B68: 0
A69: Cosecha | B69: 0
A70: Otros Servicios | B70: 0
A71: Elab. Bolos | B71: 0
A72: Elab. Fardos | B72: 0
A73: Otros Ingresos | B73: 0
A78: Tipo | B78: (Todas)
A79: Categoría | B79: (Todas)
A81: Valores
A82: Fertilizantes | B82: 214200
A83: Semillas
A84: Servicio Maq.
A85: Bolos Silo
A86: Fardos
A87: Bolos o Fardos Paja
A88: Costo Concentrado
A89: Granos
A90: Costo Sales Minerales
A91: Costo Sustituto Lácteo
A92: Alimentación Animal
A93: Otros Costos Alimentación | B93: 0
A94: Detergente | B94: 176488
A95: Cloro | B95: 46250
A96: Ácido | B96: 0
A97: Gas | B97: 240000
A98: Pezoneras | B98: 0
A99: Leña | B99: 992640
A100: Serv. Técnico | B100: 0
A101: Costo Electricidad | B101: 0
A102: Costo Repuestos | B102: 0
A103: Costo Antibióticos | B103: 0
A104: Costo Antiparasitarios Inyectables | B104: 0
A105: Costo Antiparasitarios Externos (mosca) | B105: 0
A106: Costo Vacunas Clostridiales (1/adult, 2/Tern) | B106: 0
A107: Costo Vitamina ADE | B107: 0
A108: Costo Vitamina E + Selenio (Vacas y Vaquillas) | B108: 0
A109: Costo Antiparasitario Oral (Terneros) | B109: 0
A110: Costo Aretes DIIO | B110: 0
A111: Costo Ins. Artificial y Sinc. Celos | B111: 0
A112: Costo Chequeo BB | B112: 0
A113: Costo Vacunación BB | B113: 60000
A114: Costo Chequeo LCB | B114: 0
A115: Costo Chequeo TBB | B115: 0
A116: Costo Certificado SAG | B116: 0
A117: Costo Urgencias Veterinarias + Medicamentos | B117: 0
A118: Costo Otros Insumos | B118: 0
A119: Costo Agua | B119: 0
A120: Costo Contribuciones | B120: 0
A121: Costo Contabilidad | B121: 0
A122: Costo Seguro Ganadero | B122: 0
A123: Costo Combustible Movilización Administrador | B123: 0
A124: Costo Fletes Animales e Insumos | B124: 0
A125: Costo Asesoría Técnica | B125: 238000
A126: Costo Impuesto a la Renta | B126: 0
A127: Costo Servicios externos | B127: 0
A128: Costo Mantenciones/Reparaciones | B128: 0
A129: Costo Otros Costos | B129: 0
A131: Año | B131: (Todas)
A133: Etiquetas de fila | B133: Suma de Utilidad
A134: Costos | B134: 1967577.5
A135: Ingresos | B135: 6394440
A136: Total general | B136: 8362017.5

Sheet Reporte (hidden)
A7: REPORTE FINANCIERO GENERAL | L7: Costo
A8: =+Inicio!F6 -> ESTA ES UNA MUESTRA SOLICITE SU PROPIO LIBRO DE REGISTRO
L9: Ingreso
B10: Periodo Reporte | C10: Desde | D10: 01-01-2026
C11: Hasta | D11: 31-12-2026
A13: I. Resultados Periodo
A15: Venta de Leche
B16: Total Litros Vendidos Durante el Periodo | C16: ="Desde el " &TEXT(D10,"DD/MM/YYYY")&" Hasta el "&TEXT(D11,"DD/MM/YYYY") -> Desde el 01/01/2026 Hasta el 31/12/2026 | D16: =+SUMIFS(Registro!$L:$L,Registro!$G:$G,Reporte!A15,Registro!$B:$B,"<="&Reporte!D11,Registro!$B:$B,">="&Reporte!D10) -> 5510
B17: Total Ingresos Durante el Periodo | D17: =+SUMIFS(Registro!$J:$J,Registro!$G:$G,Reporte!$A$15,Registro!$B:$B,"<="&Reporte!D11,Registro!$B:$B,">="&Reporte!D10) -> 2518940
B18: Precio Promedio x Litro | D18: =+D17/D16 -> 457.1578947
C20: % de los Costos Totales del Periodo
B21: Costo Producción Leche | C21: =+Inicio!H28 -> 0.75 | D21: =+(SUMIFS(Registro!$J:$J,Registro!$F:$F,Reporte!L7,Registro!$B:$B,"<="&Reporte!D11,Registro!$B:$B,">="&Reporte!D10))*C21 -> 1475683.125 | I21: =+D44-D21 -> 491894.375
B22: Costo Producción Litro de Leche | D22: =+D21/D16 -> 267.8190789
B24: Margen Bruto x Litro de Leche | C24: ="Desde el " &TEXT(D10,"DD/MM/YYYY")&" Hasta el "&TEXT(D11,"DD/MM/YYYY") -> Desde el 01/01/2026 Hasta el 31/12/2026 | D24: =+D25/D16 -> 189.3388158
B25: Margen Bruto total Leche | D25: =+D17-D21 -> 1043256.875
A27: Venta de Animales
B29: Total ingresos | C29: ="Desde el " &TEXT(D10,"DD/MM/YYYY")&" Hasta el "&TEXT(D11,"DD/MM/YYYY") -> Desde el 01/01/2026 Hasta el 31/12/2026 | D29: =+SUMIFS(Registro!$J:$J,Registro!$F:$F,Reporte!$L$9,Registro!$G:$G,Reporte!$A$27,Registro!$B:$B,"<="&Reporte!D11,Registro!$B:$B,">="&Reporte!D10) -> 2390000
B30: Total Kilos Vendidos | D30: =+SUMIFS(Registro!$AN:$AN,Registro!$F:$F,Reporte!$L$9,Registro!$G:$G,Reporte!$A$27,Registro!$B:$B,"<="&Reporte!D11,Registro!$B:$B,">="&Reporte!D10) -> 2000
B31: Precio Promedio Kilo animal | D31: =+D29/D30 -> 1195
C33: % de los costos del Periodo
B34: Costo Producción Carne | C34: =1-C21 -> 0.25 | D34: =+(SUMIFS(Registro!$J:$J,Registro!$F:$F,L7,Registro!$B:$B,"<="&D11,Registro!$B:$B,">="&D10))*($C$34) -> 491894.375
B35: Costo Producción Kilo animal | D35: =+D34/D30 -> 245.9471875
B37: Margen Bruto x Kilo Animal | C37: ="Desde el " &TEXT(D10,"DD/MM/YYYY")&" Hasta el "&TEXT(D11,"DD/MM/YYYY") -> Desde el 01/01/2026 Hasta el 31/12/2026 | D37: =+D38/D30 -> 949.0528125
B38: Margen Bruto Total Venta de Animales | D38: =+D29-D34 -> 1898105.625
A41: II. Resultado Total del Periodo
B43: Total Ingresos | C43: ="Desde el " &TEXT(D10,"DD/MM/YYYY")&" Hasta el "&TEXT(D11,"DD/MM/YYYY") -> Desde el 01/01/2026 Hasta el 31/12/2026 | D43: =+SUMIFS(Registro!$J:$J,Registro!$F:$F,Reporte!$L$9,Registro!$B:$B,"<="&Reporte!D11,Registro!$B:$B,">="&Reporte!D10) -> 6394440
B44: Total Costos | D44: =+SUMIFS(Registro!$J:$J,Registro!$F:$F,Reporte!L7,Registro!$B:$B,"<="&Reporte!D11,Registro!$B:$B,">="&Reporte!D10) -> 1967577.5
B45: Margen Bruto Total | D45: =+D43-D44 -> 4426862.5
C48: Ingresar Total Há Uso Agropecuario
B49: Margen Bruto x Hectárea | C49: =+Inicio!H29 -> 75 | D49: =+D45/C49 -> 59024.83333
A59: Venta de Fardos o Bolos
A63: Venta de Granos y Otros
A66: Servicios
A70: Incentivos y Otros Ingresos
A75: II. COSTOS
A77: Alimentación Animal
A80: Insumos Sala de Ordeña
A83: Sanidad
A86: Otros Costos
